Cogmind - Beta 10.2 @@@ ROGUE MODE // 2021.03.16 @ 17:17:37 Player: Moodge Result: Destroyed by as-22322 with Assembled Maul Performance ------------- Evolutions (0) 0 Regions Visited (2) 400 Robots Destroyed (5) 25 Value Destroyed (121) 121 Prototype IDs (0) 0 Alien Tech Used (0) 0 Bonus (0) 0 TOTAL SCORE: 546 Bonus ------- None Cogmind --------- Core Integrity 0/250 Matter 300/300 Energy 100/100 System Corruption 4% Temperature Cool (0) Movement Core (50) Location -10/Mines Parts ------- > --- POWER (1) -------- (None) > --- PROPULSION (2) --- (None) > --- UTILITY (2) ------ (None) > --- WEAPON (2) ------- Medium Laser > --- INVENTORY (4) ---- Aluminum Leg Small Storage Unit Peak State ------------ > --- POWER ------------ Ion Engine > --- PROPULSION ------- Aluminum Leg Aluminum Leg > --- UTILITY ---------- Small Storage Unit > --- WEAPON ----------- Light Assault Rifle > --- INVENTORY -------- (None) [Rating: 5] Favorites ----------- Power Ion Engine Engine Ion Engine Propulsion Flight Unit Leg Aluminum Leg Flight Unit Flight Unit Utility Small Storage Unit Storage Small Storage Unit Weapon Rocket Launcher Energy Gun Medium Laser Ballistic Gun Light Assault Rifle Launcher Rocket Launcher Build | -11 -10 -10 ------- Run | Scr Mat Min Slots Evolved . | . . . Power . | . . . Propulsion . | . . . Utility . | . . . Weapon . | . . . Parts Attached 10 | 1 7 2 Power 1 | . 1 . Engine 1 | . 1 . Core . | . . . Reactor . | . . . Propulsion 4 | . 4 . Treads . | . . . Leg 2 | . 2 . Wheel . | . . . Hover . | . . . Flight 2 | . 2 . Utility 1 | 1 . . Device . | . . . Storage 1 | 1 . . Processor . | . . . Hackware . | . . . Protection . | . . . Artifact . | . . . Weapon 4 | . 2 2 Energy Gun 2 | . 1 1 Energy Cannon . | . . . Ballistic Gun 1 | . 1 . Ballistic Cannon . | . . . Launcher 1 | . . 1 Special Weapon . | . . . Impact Weapon . | . . . Slashing Weapon . | . . . Piercing Weapon . | . . . Special Melee Weapon . | . . . Unidentified Prototypes . | . . . Parts Lost 6 | . 3 3 Power 1 | . . 1 Propulsion 3 | . 2 1 Utility . | . . . Weapon 2 | . 1 1 Highest Loss Streak 2 | . 2 2 Average Slot Usage (%) 44 | . 66 28 Engine 11 | . 14 9 Leg 5 | . 11 . Flight 11 | . 12 9 Storage 6 | . 14 . Energy Gun 3 | . 7 . Ballistic Gun 2 | . 5 . Launcher 4 | . . 8 Naked Turns 2 | . . 2 Heaviest Build 11 | 4 11 9 Greatest Support 20 | 3 20 4 Greatest Overweight (x) 2 | 1 2 2 Average Overweight (x) . | . . 1 Largest Inventory Capacity 6 | 6 6 6 Average Capacity 4 | 5 6 4 Most Carried 4 | 4 3 2 Average Carried . | 3 . . Final Capacity 6 | 6 6 4 Final Carried 4 | 4 . 2 Class Distribution -------------------- 100% | Mutant Dominant Class ---------------- Mutant | -10/Materials Mutant | -10/Mines Resources | -11 -10 -10 ----------- Run | Scr Mat Min Matter Collected 355 | 185 35 135 Remotely . | . . . Salvage Created 86 | . 35 51 Parts 5 | . 3 2 Haulers Intercepted . | . . . Recyclers Shooed . | . . . Parts Field Recycled . | . . . Retrieved Matter . | . . . Parts Self-Destructed . | . . . Prevented . | . . . Kills | -11 -10 -10 ------- Run | Scr Mat Min Combat Hostiles Destroyed 5 | . 3 2 Guns 3 | . 3 . AOE 2 | . . 2 Classes Destroyed 2 | . 1 1 Swarmer 3 | . 3 . Grunt 2 | . . 2 Best Kill Streak 2 | . 2 2 Combat Bots Only 2 | . 2 2 Max Kills in Single Turn 1 | . 1 1 Gunslinging . | . . . Exploded 1 | . . 1 Melee . | . . . Uniques/NPCs Destroyed . | . . . Combat | -11 -10 -10 -------- Run | Scr Mat Min Damage Taken 734 | . 492 242 Core 269 | . 116 153 Absorbed by Shields . | . . . Core Remaining (%) 100 | 100 . . Volleys Fired 34 | . 28 6 Largest 1 | . 1 1 Hottest 50 | . 50 33 Shots Fired 34 | . 28 6 Gun 28 | . 28 . Cannon . | . . . Launcher 6 | . . 6 Special . | . . . Kinetic 24 | . 24 . Thermal 4 | . 4 . Explosive 6 | . . 6 Electromagnetic . | . . . Robot Hit Streak 5 | . 3 5 Robot Miss Streak 3 | . 3 1 Penetration Max . | . . . Secondary Targets . | . . . Shots Hit Robots 15 | . 12 3 Core Hits 8 | . 5 3 Critical Hits . | . . . Critical Kills . | . . . Critical Parts Destroyed . | . . . Melee Attacks . | . . . Impact . | . . . Slashing . | . . . Piercing . | . . . Sneak Attacks . | . . . Combat Hostiles . | . . . Follow-up Attacks . | . . . Damage Inflicted 335 | . 148 187 Guns 141 | . 141 . Cannons . | . . . Explosions 187 | . . 187 Melee . | . . . Ramming 7 | . 7 . Kinetic 102 | . 102 . Thermal 39 | . 39 . Explosive 187 | . . 187 Electromagnetic . | . . . Impact . | . . . Slashing . | . . . Piercing . | . . . Highest Corruption 4 | . 1 4 Average Corruption 1 | . 1 1 Corruption Purged . | . . . Overload Shots . | . . . Overflow Damage 5 | . . 5 Projectiles . | . . . Explosions 5 | . . 5 Melee . | . . . Knockbacks 1 | . 1 . Impact 1 | . 1 . Kinetic . | . . . Secondary . | . . . Self-Inflicted Damage 64 | . 3 61 Shots 2 | . . 2 Rammed 2 | . 1 1 Targets Rammed 2 | . 1 1 Kicked . | . . . Crushed . | . . . Highest Temperature 30 | . 30 3 Average Temperature 13 | . 14 3 Received Heat Transfer 45 | . 18 27 Siege Activations . | . . . Robots Corrupted . | . . . Combat Hostiles . | . . . Parts Fried . | . . . Impact Corruptions . | . . . Robots Melted . | . . . Combat Hostiles . | . . . Parts Melted . | . . . Heat Transferred 111 | . 111 . Parts Sabotaged . | . . . Parts Stolen . | . . . Parts Stripped . | . . . Power Chain Reactions . | . . . Missiles Intercepted . | . . . Alert | -11 -10 -10 ------- Run | Scr Mat Min Peak Influence 110 | . 110 89 Initial 39 | . . 39 Average 49 | . 45 58 Maximum Alert Level . | . . . Low Security (%) 100 | 100 100 100 Level 1 . | . . . Level 2 . | . . . Level 3 . | . . . Level 4 . | . . . Level 5 . | . . . High Security . | . . . Max Security . | . . . Squads Dispatched 1 | . 1 . Investigation 1 | . 1 . Extermination . | . . . Reinforcement . | . . . Assault . | . . . Garrison . | . . . Intercept . | . . . Construction Impeded . | . . . Haulers Reinforced . | . . . Stealth | -11 -10 -10 --------- Run | Scr Mat Min Distress Signals 1 | . 1 . Communications Jammed . | . . . Distress Signals . | . . . Times Spotted 15 | . 11 4 Peak Tracking Total 6 | . 6 2 Tactical Retreats 1 | . 1 . Traps | -11 -10 -10 ------- Run | Scr Mat Min Traps Triggered . | . . . Indirectly . | . . . Trap Hack Attempts . | . . . Triggered . | . . . Disarmed . | . . . Reprogrammed . | . . . Reused . | . . . Traps Extracted . | . . . Installed . | . . . Triggered . | . . . Machines | -11 -10 -10 ---------- Run | Scr Mat Min Machines Disabled 1 | . . 1 Max in Single Turn 1 | . . 1 Machines Sabotaged . | . . . Garrisons Compromised . | . . . Overloaded Fab Kills . | . . . Fab Network Shutdowns . | . . . Hacking | -11 -10 -10 --------- Run | Scr Mat Min Machines Accessed 1 | . 1 . Terminals 1 | . 1 . Fabricators . | . . . Repair Stations . | . . . Recycling Units . | . . . Scanalyzers . | . . . Garrison Access . | . . . Total Hacks 2 | . 2 . Successful . | . . . Failed 2 | . 2 . Catastrophic 2 | . 2 . Database Lockouts . | . . . Manual 2 | . 2 . Terminals 2 | . 2 . Fabricators . | . . . Repair Stations . | . . . Recycling Units . | . . . Scanalyzers . | . . . Garrison Access . | . . . Terminal Hacks . | . . . Fabricator Hacks . | . . . Repair Station Hacks . | . . . Recycling Unit Hacks . | . . . Scanalyzer . | . . . Garrison Access Hacks . | . . . Unauthorized Hacks . | . . . Terminals . | . . . Fabricators . | . . . Repair Stations . | . . . Recycling Units . | . . . Scanalyzers . | . . . Garrison Access . | . . . Data Cores Recovered . | . . . Used . | . . . Hacking Detections 1 | . 1 . Full Trace Events 1 | . 1 . Feedback Events 1 | . 1 . Corruption 1 | . 1 . Feedback Blocked . | . . . Robot Schematics Acquired . | . . . Robots Built . | . . . Matter . | . . . Time . | . . . Total Robot Build Rating . | . . . Part Schematics Acquired . | . . . Parts Built . | . . . Matter . | . . . Time . | . . . Total Part Build Rating . | . . . Parts Repaired . | . . . Time . | . . . Parts Recycled . | . . . Recycled Matter . | . . . Retrieved Matter . | . . . Retrieved Components . | . . . Parts Scanalyzed . | . . . Part Schematics Acquired . | . . . Parts Damaged . | . . . Bothacking | -11 -10 -10 ------------ Run | Scr Mat Min Used RIF Installer . | . . . Robots Hacked . | . . . Non-combat . | . . . Combat . | . . . Robot Hacks Applied . | . . . Relay Couplers Released . | . . . Robots Rewired . | . . . Allies Hacked . | . . . Hacks Repelled . | . . . Allies | -11 -10 -10 -------- Run | Scr Mat Min Total Allies . | . . . Largest Group . | . . . Highest-Rated Group . | . . . Highest-Rated Ally . | . . . Total Orders . | . . . Ally Attacks . | . . . Total Damage . | . . . Kills . | . . . Allies Corrupted . | . . . Allies Melted . | . . . Intel | -11 -10 -10 ------- Run | Scr Mat Min Robot Analysis Total . | . . . Derelict Logs Recovered 2 | . . 2 Drone Launches . | . . . Drone Recoveries . | . . . Exploration | -11 -10 -10 ------------- Run | Scr Mat Min Turns Passed 585 | 37 238 310 Spaces Moved 394 | 41 127 226 Core 130 | 41 . 89 Treads . | . . . Legs 32 | . 32 . Wheels . | . . . Hover . | . . . Flight 232 | . 95 137 Fastest Speed 50 | 50 117 50 Average Speed 120 | 78 121 128 Slowest Speed 200 | 100 200 200 Overloaded Moves . | . . . Propulsion Burnouts . | . . . Robots Hopped . | . . . Cave-ins Triggered . | . . . Exploration Rate (%) 32 | 3 31 63 Regions Visited 2 Branch Regions 1 Pre-discovered Areas 1 | . . 1 Known Exits Taken . | . . . Unknown Exits Taken 2 | 1 1 . Scrap Searched . | . . . Spaces Dug . | . . . Terrain Destroyed 54 | . . 54 Melee . | . . . Projectile . | . . . AOE 54 | . . 54 Terrain Rammed . | . . . Walls Destroyed . | . . . Machines Disabled . | . . . Actions | -11 -10 -10 --------- Run | Scr Mat Min Total 474 | 45 188 241 Wait 22 | . 22 . Move 392 | 40 126 226 Hop . | . . . Pick Up 11 | 4 3 4 Fast Attach 1 | 1 . . Attach 9 | . 7 2 Detach . | . . . Swap . | . . . Drop 3 | . 1 2 Fire 34 | . 28 6 Melee . | . . . Ram 2 | . 1 1 Kick . | . . . Crush . | . . . Escape Stasis . | . . . Rewire . | . . . Trap . | . . . Miscellaneous . | . . . Route ------- -11/Scrapyard -10/Materials -10/Mines (discovered 1 exit: [*Mat]) History --------- Turn | Location | Event 19 | -11/Scrapyard | Discovered new exit (range 15) 38 | -11/Scrapyard | Entered Materials 264 | -10/Materials | Discovered new exit (range 12) 276 | -10/Materials | Entered Mines 317 | -10/Mines | Build established: Mutant 374 | -10/Mines | Received a Rocket Launcher from a helpful Derelict 447 | -10/Mines | Core integrity fell below 50% 537 | -10/Mines | Assembled infested the area 544 | -10/Mines | Learned location of Zion (-7) 545 | -10/Mines | Learned Materials stockpile data 579 | -10/Mines | Core integrity fell below 20% 582 | -10/Mines | Discovered new exit (range 10) 586 | -10/Mines | Destroyed by as-22322 with Assembled Maul Last Messages --------------- 00520_ U-05 Engineer builds a Wall. 00522_ U-05 Engineer lays Concrete. 00536_ Slammed into T-07 Excavator. 00537_ ALERT: Infestation in the mines, dispatching Demolisher response squad. 00544_ Acquired derelict log, extracted data. World map updated: -7/Zion. 00545_ Acquired derelict log, extracted data. Data stored: Materials stockpile data. 00566_ R-06 Scavenger system terminally corrupted. 00569_ Acquired 96 matter. 00571_ Acquired Sml. Storage Unit. 00574_ Acquired Med. Laser. 00575_ Destroyed Wheel. 00578_ Rocket Launcher destroyed. 00578_ System corrupted by crushing effect (+3). 00578_ Knocked back. 00582_ EXIT=FOUND 00584_ Acquired 19 matter. 00585_ Acquired Aluminum Leg. Map ----- +----------------------------------------------------+ | | | ???????????????????????????????????????????? | | ???????????????????????????????????????????? | | ???????????????????????????????????????????? | | ???????????????????????????????????????????? | | ???????????????????????????????????????????? | | ???????????????????????????????????????????? | | ???????????????????????????????????????????? | | ???????????????????????????????????????????? | | ???????????????????????????????????????????? | | ???????????????????????????????????????????? | | ???????????????????????????????????????????? | | ???????????????????????????????????????????? | | ???????????????????????????????????????????? | | ???????????????????????????????????????????? | | ???????????????????????????????????????????? | | ????????????????????#######????????????????? | | ????????????????????# #????????????????? | | ????????????????????# #????????????????? | | ????????????????????# < #????????????????? | | ????????????????????# #????????????????? | | ????????????????????# #????????????????? | | ???????????????????## ####??????????????? | | ?????????????????### # ###????????????? | | ?????????????????# ## [%% ##???????????? | | ????????????????## * !a%@ #???????????? | | ???????????????## ## a# #???????????? | | ????# ???????# #??????????? | | ?????# ## # # #???????? | | ??????# ## # #??????? | | #?????# ## ###### #??????? | | ?????# ???#### ###?????? ##??????? | | ????# ?????????# #????????? < #???????? | | ????#????????????# #?????????## ##???????? | | ?????????????????# #??????????? #???????? | | #?????????####???# #???????????? #??????? | | ###??????## ##??# #?###?????????# ??????? | | ##????## ##?# #?# ??????????##???????? | | #?#### ### ### #???????????????????? | | ### ## #???????????????????? | | ### #### ## #???????????????????? | | ###?# ##??# ## ######??????????????? | | #???## ##???# ## # ##?????????????? | | ?????## ##????# #?????????????? | | ??????### #####?# #?????????????? | | ????????## ######## ##?????????????? | | ????????## #?????#### #??????????????? | | ????????# #????????? #??????????????? | | ????????# ##?????????#??????????????? | | #???????## ## #????????????????????????? | +----------------------------------------------------+ Best States ------------- Heat Dissipation 25 Energy Generation 10 Energy Capacity 250 Matter Stores 297 Matter Capacity 300 Sight Range 16 Terrain Scan Density 10 Evasion (%) 50 Item Schematics ----------------- None Robot Schematics ------------------ None Fabricated ------------ Nothing Alien Tech Used ----------------- None Achievements -------------- None Challenges ------------ None Game ------ Seed PropulsionSeismicPit Manual? 0 Play Time 00:07:34 Cumulative 6.6 hours Start 2021.03.16 @ 17:12:12 End 2021.03.16 @ 17:17:37 Sessions 1 Manual Loads 0 Difficulty Rogue Special Mode None Game No. 25 Rogue 25 Adventurer 0 Explorer 0 Win Type - Total 0 Types 0/0/0/0/0/0/0/0/0 Lore% 2 Gallery% 14 Achievement% 14 Wizard Run 0 Options --------- ASCII 0 Keyboard 0 Movement Mouse Keybinds 0 Fullscreen 1 Font 16/SmallcapsGlow Map View 76x50 Tactical HUD 1 Map Filters NONE Filters NONE Steam 1 RUN: d8aae605-62ee-45f6-b1bf-bdac0adbab7e